Cogmind - Beta 9.6 @@@ ROGUE MODE // 2020.09.11 @ 10:10:06 Player: Hilbert Result: Destroyed by L-31 Rogue with Katana Performance ------------- Evolutions (2) 1000 Regions Visited (7) 1400 Robots Destroyed (39) 195 Value Destroyed (1400) 1400 Prototype IDs (0) 0 Alien Tech Used (0) 0 Bonus (704) 704 TOTAL SCORE: 4699 Bonus ------- High Alert Combat Kills 4 Entered Garrisons 200 Used RIF Installer 500 Cogmind --------- Core Integrity 0/550 Matter 49/300 Energy 100/100 System Corruption 0% Temperature Cool (0) Movement Core (450) Ox8 Location -8/Materials Parts ------- > --- POWER (1) -------- (None) > --- PROPULSION (4) --- (None) > --- UTILITY (4) ------ Medium Storage Unit Large Storage Unit Melee Analysis Suite > --- WEAPON (2) ------- Mini Grenade Launcher > --- INVENTORY (14) --- Micro Nuclear Core Armored Huge Wheel Xenon Bombardment Thruster Xenon Bombardment Thruster Xenon Bombardment Thruster Xenon Bombardment Thruster Advanced Signal Interpreter Improved Terrain Scanner Beam Rifle Light Assault Rifle Katana Peak State ------------ > --- POWER ------------ Micro Nuclear Core > --- PROPULSION ------- Armored Huge Wheel Armored Huge Wheel > --- UTILITY ---------- Medium Storage Unit Large Storage Unit Advanced Terrain Scanner Melee Analysis Suite > --- WEAPON ----------- Katana Katana > --- INVENTORY -------- Micro Nuclear Core Armored Huge Wheel Armored Huge Wheel Xenon Bombardment Thruster Xenon Bombardment Thruster Xenon Bombardment Thruster Xenon Bombardment Thruster Advanced Signal Interpreter Improved Terrain Scanner Battle Cannon [Rating: 38] Favorites ----------- Power Light Ion Engine Engine Light Ion Engine Power Core Micro Nuclear Core Propulsion Light Treads Treads Light Treads Wheel Armored Huge Wheel Utility Large Storage Unit Device Improved Terrain Scanner Storage Large Storage Unit Processor Melee Analysis Suite Protection Light Armor Plating Weapon Heavy Assault Rifle Energy Gun EM Pulse Gun Energy Cannon EM Pulse Cannon Ballistic Gun Heavy Assault Rifle Ballistic Cannon Battle Cannon Launcher Rocket Launcher Slashing Weapon Katana Build | -11 -10 -10 -9 -9 -8 -8 -8 ------- Run | Scr Mat Min Mat Min Mat Gar Mat Slots Evolved 4 | . . . 2 . 2 . . Power . | . . . . . . . . Propulsion 2 | . . . 1 . 1 . . Utility 2 | . . . 1 . 1 . . Weapon . | . . . . . . . . Parts Attached 35 | 6 2 . 9 2 6 7 3 Power 3 | 1 . . 1 . 1 . . Engine 2 | 1 . . 1 . . . . Core 1 | . . . . . 1 . . Reactor . | . . . . . . . . Propulsion 9 | 2 . . 3 1 2 . 1 Treads 4 | 1 . . 2 1 . . . Leg . | . . . . . . . . Wheel 5 | 1 . . 1 . 2 . 1 Hover . | . . . . . . . . Flight . | . . . . . . . . Utility 8 | 1 1 . 2 . 3 1 . Device 3 | . 1 . . . 2 . . Storage 3 | 1 . . 2 . . . . Processor 1 | . . . . . . 1 . Hackware . | . . . . . . . . Protection 1 | . . . . . 1 . . Artifact . | . . . . . . . . Weapon 15 | 2 1 . 3 1 . 6 2 Energy Gun 2 | 1 . . 1 . . . . Energy Cannon 1 | . . . . . . 1 . Ballistic Gun 4 | 1 1 . 1 . . 1 . Ballistic Cannon 2 | . . . . . . 1 1 Launcher 2 | . . . . 1 . . 1 Special Weapon . | . . . . . . . . Impact Weapon . | . . . . . . . . Slashing Weapon 4 | . . . 1 . . 3 . Piercing Weapon . | . . . . . . . . Special Melee Weapon . | . . . . . . . . Unidentified Prototypes . | . . . . . . . . Parts Lost 19 | . . . 6 . 2 4 7 Power 2 | . . . 1 . . . 1 Propulsion 6 | . . . 3 . . . 3 Utility 3 | . . . . . 1 1 1 Weapon 8 | . . . 2 . 1 3 2 Highest Loss Streak 6 | . . . 5 . 1 2 6 Average Slot Usage (%) 87 | . 94 100 96 100 80 80 62 Engine 6 | . 14 14 10 11 2 . . Core 3 | . . . . . 6 9 5 Treads 11 | . 14 14 22 22 3 . . Wheel 13 | . 14 14 10 11 16 18 14 Device 10 | . 8 14 11 11 10 13 5 Storage 18 | . 14 14 20 22 18 18 18 Processor 1 | . . . . . . 4 9 Energy Gun 1 | . 5 . 3 . . . . Ballistic Gun 12 | . 22 28 15 11 8 3 5 Ballistic Cannon 1 | . . . . . . 2 4 Launcher 4 | . . . . 11 9 3 . Slashing Weapon 1 | . . . . . . 6 . Naked Turns . | . . . . . . . . Heaviest Build 42 | 10 12 12 37 39 42 42 35 Greatest Support 56 | 20 16 16 40 40 56 56 56 Greatest Overweight (x) 4 | . . . 3 3 4 . 1 Average Overweight (x) . | . . . . 2 . . . Largest Inventory Capacity 14 | 6 6 6 14 14 14 14 14 Average Capacity 12 | 5 6 6 13 14 14 14 14 Most Carried 14 | 4 6 6 8 6 14 13 14 Average Carried 8 | 1 5 6 5 5 12 12 12 Final Capacity 14 | 6 6 6 14 14 14 14 14 Final Carried 14 | 4 6 6 5 6 14 13 12 Class Distribution -------------------- 77% | Mutant 22% | Scavenger-Mutant Dominant Class ---------------- Mutant | -10/Materials Mutant | -10/Mines Mutant | -9/Materials Scavenger-Mutant | -9/Mines Mutant | -8/Materials Mutant | -8/Garrison Mutant | -8/Materials Resources | -11 -10 -10 -9 -9 -8 -8 -8 ----------- Run | Scr Mat Min Mat Min Mat Gar Mat Matter Collected 704 | 174 . 13 208 89 92 92 36 Remotely . | . . . . . . . . Salvage Created 1170 | . . 13 504 71 334 125 123 Parts 62 | . . . 30 4 14 7 7 Haulers Intercepted 1 | . . . . . 1 . . Recyclers Shooed . | . . . . . . . . Parts Field Recycled . | . . . . . . . . Retrieved Matter . | . . . . . . . . Parts Self-Destructed . | . . . . . . . . Prevented . | . . . . . . . . Kills | -11 -10 -10 -9 -9 -8 -8 -8 ------- Run | Scr Mat Min Mat Min Mat Gar Mat Combat Hostiles Destroyed 33 | . . 1 10 2 9 6 5 Melee 5 | . . . 1 . . 4 . Guns 11 | . . 1 8 1 1 . . Cannons 1 | . . . . . . . 1 AOE 16 | . . . 1 1 8 2 4 Classes Destroyed 11 | . . 1 5 . 4 1 . Worker 2 | . . . . . 2 . . Builder 2 | . . . 2 . . . . Hauler 1 | . . . . . 1 . . Operator 1 | . . . . . 1 . . Swarmer 4 | . . . 1 . . 2 1 Grunt 16 | . . . 4 2 7 1 2 Brawler 1 | . . . . . . 1 . Duelist 3 | . . . 1 . . 2 . Sentry 5 | . . . 4 . . . 1 Hunter 3 | . . . . . 2 . 1 Assembled 1 | . . 1 . . . . . Best Kill Streak 9 | . . 1 7 9 3 2 4 Combat Bots Only 8 | . . 1 6 8 3 2 4 Max Kills in Single Turn 3 | . . 1 2 1 3 1 3 Gunslinging 1 | . . . 1 . . . . Exploded 3 | . . . 1 1 2 1 3 Melee 1 | . . . 1 . . 1 . Uniques/NPCs Destroyed . | . . . . . . . . Combat | -11 -10 -10 -9 -9 -8 -8 -8 -------- Run | Scr Mat Min Mat Min Mat Gar Mat Damage Taken 3247 | . . 26 938 40 408 739 1096 Core 801 | . . . 220 13 127 146 295 Absorbed by Shields 21 | . . . . . . 21 . Core Remaining (%) 80 | 100 . 100 . 41 . . . Volleys Fired 72 | . 2 4 31 3 15 10 7 Largest 2 | . 2 2 2 2 2 2 2 Hottest 96 | . 43 43 63 56 56 96 59 Shots Fired 123 | . 4 8 47 6 29 18 11 Gun 80 | . 4 8 47 3 14 . 4 Cannon 13 | . . . . . . 9 4 Launcher 30 | . . . . 3 15 9 3 Special . | . . . . . . . . Kinetic 72 | . 4 8 29 3 14 6 8 Thermal . | . . . . . . . . Explosive 30 | . . . . 3 15 9 3 Electromagnetic 21 | . . . 18 . . 3 . Robot Hit Streak 9 | . 2 3 8 8 5 9 9 Robot Miss Streak 4 | . 1 2 2 1 3 4 1 Penetration Max . | . . . . . . . . Secondary Targets 1 | . . . 1 . . . . Max Gunslinging Chain 1 | . . . 1 . . . . Shots Hit Robots 97 | . 3 5 36 4 17 22 10 Core Hits 81 | . . 3 20 3 31 12 12 Critical Hits 2 | . . . . . . 2 . Critical Kills . | . . . . . . . . Critical Parts Destroyed 2 | . . . . . . 2 . Melee Attacks 16 | . . . 2 . . 14 . Impact . | . . . . . . . . Slashing 16 | . . . 2 . . 14 . Piercing . | . . . . . . . . Sneak Attacks . | . . . . . . . . Combat Hostiles . | . . . . . . . . Follow-up Attacks . | . . . . . . . . Damage Inflicted 3624 | . . 28 649 156 1270 1066 455 Guns 745 | . . 28 489 48 146 . 34 Cannons 230 | . . . . . . 159 71 Explosions 2302 | . . . 130 108 1124 607 333 Melee 321 | . . . 30 . . 291 . Ramming 26 | . . . . . . 9 17 Kinetic 702 | . . 28 292 48 146 83 105 Thermal 237 | . . . 130 . 107 . . Explosive 2065 | . . . . 108 1017 607 333 Electromagnetic 273 | . . . 197 . . 76 . Impact . | . . . . . . . . Slashing 321 | . . . 30 . . 291 . Piercing . | . . . . . . . . Highest Corruption . | . . . . . . . . Average Corruption . | . . . . . . . . Corruption Purged . | . . . . . . . . Overload Shots . | . . . . . . . . Overflow Damage 55 | . . . 9 . 45 1 . Projectiles . | . . . . . . . . Explosions 54 | . . . 9 . 45 . . Melee 1 | . . . . . . 1 . Knockbacks 1 | . . . . . . 1 . Impact . | . . . . . . . . Kinetic 1 | . . . . . . 1 . Secondary . | . . . . . . . . Self-Inflicted Damage 277 | . . . 83 . 31 95 68 Shots 8 | . . . 2 . 1 3 2 Rammed 4 | . . . 1 . . 1 2 Targets Rammed 4 | . . . 1 . . 1 2 Kicked . | . . . . . . . . Crushed . | . . . . . . . . Highest Temperature 58 | . 2 2 58 8 31 12 29 Average Temperature 15 | . 1 1 20 4 21 6 13 Received Heat Transfer 600 | . . . 144 24 117 54 261 Siege Activations . | . . . . . . . . Robots Corrupted . | . . . . . . . . Combat Hostiles . | . . . . . . . . Parts Fried 1 | . . . 1 . . . . Impact Corruptions . | . . . . . . . . Robots Melted . | . . . . . . . . Combat Hostiles . | . . . . . . . . Parts Melted . | . . . . . . . . Heat Transferred 250 | . . . 150 . 100 . . Parts Sabotaged . | . . . . . . . . Parts Stolen . | . . . . . . . . Parts Stripped . | . . . . . . . . Power Chain Reactions 2 | . . . 2 . . . . Missiles Intercepted . | . . . . . . . . Alert | -11 -10 -10 -9 -9 -8 -8 -8 ------- Run | Scr Mat Min Mat Min Mat Gar Mat Peak Influence 461 | . 21 7 293 171 347 461 352 Average Influence 165 | . 4 7 85 169 219 361 242 Maximum Alert Level 2 | . . . 1 . 1 2 1 Low Security (%) 58 | 100 100 100 83 100 29 . . Level 1 34 | . . . 16 . 70 48 100 Level 2 7 | . . . . . . 51 . Level 3 . | . . . . . . . . Level 4 . | . . . . . . . . Level 5 . | . . . . . . . . High Security . | . . . . . . . . Max Security . | . . . . . . . . Squads Dispatched 6 | . 1 . 1 . 3 . 1 Investigation 1 | . . . . . . . 1 Extermination . | . . . . . . . . Reinforcement 5 | . 1 . 1 . 3 . . Assault . | . . . . . . . . Garrison . | . . . . . . . . Intercept . | . . . . . . . . Construction Impeded . | . . . . . . . . Haulers Reinforced . | . . . . . . . . Stealth | -11 -10 -10 -9 -9 -8 -8 -8 --------- Run | Scr Mat Min Mat Min Mat Gar Mat Distress Signals 4 | . . . 2 . 2 . . Communications Jammed . | . . . . . . . . Distress Signals . | . . . . . . . . Times Spotted 83 | . 2 4 28 2 18 12 17 Peak Tracking Total 13 | . 1 4 10 2 6 7 13 Tactical Retreats 11 | . . 1 1 . 2 4 3 Traps | -11 -10 -10 -9 -9 -8 -8 -8 ------- Run | Scr Mat Min Mat Min Mat Gar Mat Traps Triggered 5 | . . . 1 . . 3 1 Indirectly . | . . . . . . . . Trap Hack Attempts . | . . . . . . . . Triggered . | . . . . . . . . Disarmed . | . . . . . . . . Reprogrammed . | . . . . . . . . Reused . | . . . . . . . . Traps Extracted . | . . . . . . . . Installed . | . . . . . . . . Triggered . | . . . . . . . . Machines | -11 -10 -10 -9 -9 -8 -8 -8 ---------- Run | Scr Mat Min Mat Min Mat Gar Mat Machines Disabled 7 | . . . 2 1 3 . 1 Max in Single Turn 2 | . . . 1 1 2 . 1 Machines Sabotaged . | . . . . . . . . Garrisons Compromised . | . . . . . . . . Overloaded Fab Kills . | . . . . . . . . Fab Network Shutdowns . | . . . . . . . . Hacking | -11 -10 -10 -9 -9 -8 -8 -8 --------- Run | Scr Mat Min Mat Min Mat Gar Mat Machines Accessed 6 | . 1 . 1 . 4 . . Terminals 5 | . 1 . 1 . 3 . . Fabricators . | . . . . . . . . Repair Stations . | . . . . . . . . Recycling Units . | . . . . . . . . Scanalyzers . | . . . . . . . . Garrison Access 1 | . . . . . 1 . . Total Hacks 15 | . 2 . 3 . 10 . . Successful 10 | . 2 . 3 . 5 . . Failed 5 | . . . . . 5 . . Catastrophic 1 | . . . . . 1 . . Database Lockouts . | . . . . . . . . Manual 14 | . 2 . 3 . 9 . . Terminals 14 | . 2 . 3 . 9 . . Fabricators . | . . . . . . . . Repair Stations . | . . . . . . . . Recycling Units . | . . . . . . . . Scanalyzers . | . . . . . . . . Garrison Access 1 | . . . . . 1 . . Terminal Hacks 5 | . 1 . 2 . 2 . . Robot Analysis 3 | . 1 . 2 . . . . Unreport Threat 1 | . . . . . 1 . . Recall Investigation 1 | . . . . . 1 . . Fabricator Hacks . | . . . . . . . . Repair Station Hacks . | . . . . . . . . Recycling Unit Hacks . | . . . . . . . . Scanalyzer . | . . . . . . . . Garrison Access Hacks 1 | . . . . . 1 . . Unlock Access 1 | . . . . . 1 . . Unauthorized Hacks 4 | . 1 . 1 . 2 . . Terminals 4 | . 1 . 1 . 2 . . Botnet 4 | . 1 . 1 . 2 . . Fabricators . | . . . . . . . . Repair Stations . | . . . . . . . . Recycling Units . | . . . . . . . . Scanalyzers . | . . . . . . . . Garrison Access . | . . . . . . . . Data Cores Recovered . | . . . . . . . . Used . | . . . . . . . . Hacking Detections 6 | . 1 . 1 . 4 . . Full Trace Events . | . . . . . . . . Feedback Events . | . . . . . . . . Feedback Blocked . | . . . . . . . . Robot Schematics Acquired . | . . . . . . . . Robots Built . | . . . . . . . . Matter . | . . . . . . . . Time . | . . . . . . . . Total Robot Build Rating . | . . . . . . . . Part Schematics Acquired . | . . . . . . . . Parts Built . | . . . . . . . . Matter . | . . . . . . . . Time . | . . . . . . . . Total Part Build Rating . | . . . . . . . . Parts Repaired . | . . . . . . . . Time . | . . . . . . . . Parts Recycled . | . . . . . . . . Recycled Matter . | . . . . . . . . Retrieved Matter . | . . . . . . . . Retrieved Components . | . . . . . . . . Parts Scanalyzed . | . . . . . . . . Part Schematics Acquired . | . . . . . . . . Parts Damaged . | . . . . . . . . Bothacking | -11 -10 -10 -9 -9 -8 -8 -8 ------------ Run | Scr Mat Min Mat Min Mat Gar Mat Used RIF Installer 1 | . . . . . . 1 . Robots Hacked . | . . . . . . . . Non-combat . | . . . . . . . . Combat . | . . . . . . . . Robot Hacks Applied . | . . . . . . . . Relay Couplers Released . | . . . . . . . . Robots Rewired . | . . . . . . . . Allies Hacked . | . . . . . . . . Hacks Repelled . | . . . . . . . . Allies | -11 -10 -10 -9 -9 -8 -8 -8 -------- Run | Scr Mat Min Mat Min Mat Gar Mat Total Allies . | . . . . . . . . Largest Group . | . . . . . . . . Highest-Rated Group . | . . . . . . . . Highest-Rated Ally . | . . . . . . . . Total Orders . | . . . . . . . . Ally Attacks . | . . . . . . . . Total Damage . | . . . . . . . . Kills . | . . . . . . . . Allies Corrupted . | . . . . . . . . Allies Melted . | . . . . . . . . Intel | -11 -10 -10 -9 -9 -8 -8 -8 ------- Run | Scr Mat Min Mat Min Mat Gar Mat Robot Analysis Total 3 | . 1 . 2 . . . . Derelict Logs Recovered 3 | . . 1 . 2 . . . Drone Launches . | . . . . . . . . Drone Recoveries . | . . . . . . . . Exploration | -11 -10 -10 -9 -9 -8 -8 -8 ------------- Run | Scr Mat Min Mat Min Mat Gar Mat Turns Passed 1896 | 68 94 236 337 340 288 281 252 Spaces Moved 1425 | 57 84 211 195 287 213 197 181 Core 7 | 7 . . . . . . . Treads 16 | 3 . . 4 8 1 . . Legs . | . . . . . . . . Wheels 1402 | 47 84 211 191 279 212 197 181 Hover . | . . . . . . . . Flight . | . . . . . . . . Fastest Speed 50 | 50 100 100 100 110 100 100 100 Average Speed 103 | 97 100 100 109 111 102 100 100 Slowest Speed 180 | 160 100 100 160 160 180 100 110 Overloaded Moves . | . . . . . . . . Propulsion Burnouts . | . . . . . . . . Robots Hopped . | . . . . . . . . Cave-ins Triggered . | . . . . . . . . Exploration Rate (%) 32 | 4 21 45 25 69 34 40 24 Regions Visited 7 Branch Regions 2 Pre-discovered Areas 2 | . . 1 . 1 . . . Known Exits Taken 1 | . . . . . 1 . . Unknown Exits Taken 5 | 1 1 1 1 1 . . . Scrap Searched . | . . . . . . . . Spaces Dug . | . . . . . . . . Terrain Destroyed 225 | . . . 6 18 125 49 27 Melee . | . . . . . . . . Projectile 1 | . . . . . . . 1 AOE 224 | . . . 6 18 125 49 26 Actions | -11 -10 -10 -9 -9 -8 -8 -8 --------- Run | Scr Mat Min Mat Min Mat Gar Mat Total 1690 | 66 89 229 269 300 256 240 241 Wait 99 | . . 13 27 7 3 2 47 Move 1417 | 56 83 210 194 286 212 195 181 Hop . | . . . . . . . . Pick Up 27 | 4 2 1 4 2 11 2 1 Fast Attach 16 | 6 1 . 3 . 2 3 1 Attach 12 | . . . 5 1 2 3 1 Detach 2 | . . . . . 2 . . Swap 7 | . 1 . 1 1 2 1 1 Drop 9 | . . 1 1 . 7 . . Fire 72 | . 2 4 31 3 15 10 7 Melee 16 | . . . 2 . . 14 . Ram 3 | . . . . . . 1 2 Kick . | . . . . . . . . Crush 1 | . . . 1 . . . . Escape Stasis 9 | . . . . . . 9 . Rewire . | . . . . . . . . Trap . | . . . . . . . . Miscellaneous . | . . . . . . . . Route ------- -11/Scrapyard -10/Materials -10/Mines (discovered 2 exits: *Mat x2) -9/Materials -9/Mines -8/Materials (discovered 2 exits: [*Fac] / Gar) -8/Garrison -8/Materials History --------- Turn | Location | Event 4 | -11/Scrapyard | Discovered new exit (range 15) 69 | -11/Scrapyard | Entered Materials 144 | -10/Materials | Discovered new exit (range 13) 163 | -10/Materials | Entered Mines 164 | -10/Mines | Assembled infested the area 169 | -10/Mines | Assisted by a Guerilla fighting off Assembled 191 | -10/Mines | Met a Derelict bent on vengeance 221 | -10/Mines | Learned location of Storage (-7) 289 | -10/Mines | Learned Materials garrison access intel 291 | -10/Mines | Discovered new exit (range 9) 315 | -10/Mines | Build established: Mutant 370 | -10/Mines | Discovered new exit (range 5) 386 | -10/Mines | Received a Rocket Launcher from a helpful Derelict 399 | -10/Mines | Entered Materials 399 | -9/Materials | Evolved 2 slots: Propulsion x1, Utility x1 595 | -9/Materials | Discovered new exit (range 16) 710 | -9/Materials | Core integrity fell below 50% 736 | -9/Materials | Entered Mines 766 | -9/Mines | Destroyed 8 combat bots 766 | -9/Mines | Lost 5 parts (1p2n2w) 769 | -9/Mines | Learned Materials security intel 950 | -9/Mines | A weapon hastily lodged in a ceiling crevice suddenly fell to the ground 1000 | -9/Mines | Discovered new exit (range 16) 1006 | -9/Mines | Build established: Scavenger-Mutant 1076 | -9/Mines | Entered Materials 1076 | -8/Materials | Evolved 2 slots: Propulsion x1, Utility x1 1078 | -8/Materials | Loaded intel: 1 garrison access location 1346 | -8/Materials | Discovered new exit (range 15) 1363 | -8/Materials | Identified exit to Garrison 1364 | -8/Materials | Entered Garrison 1432 | -8/Garrison | Triggered checkpoint 1436 | -8/Garrison | Build established: Mutant 1618 | -8/Garrison | Discovered new exit (range 13) 1640 | -8/Garrison | Installed Relay Interface Framework 1645 | -8/Garrison | Entered Materials 1700 | -8/Materials | Core integrity fell below 50% 1830 | -8/Materials | Lost 6 parts (1p2n1u2w) 1870 | -8/Materials | Core integrity fell below 20% 1897 | -8/Materials | Destroyed by L-31 Rogue with Katana Last Messages --------------- 01797_ C-30 ARC bursts open, deploying its payload. 01797_ H-55 Commando unfolds itself. 01798_ Penetrated by Slug. 01798_ Arm. Huge Wheel destroyed. 01799_ Adv. Terrain Scanner destroyed. 01799_ K-01 Serf collects debris. 01801_ Slug penetrates Wall. 01812_ K-01 Serf collects debris. 01824_ K-01 Serf suffers critical hit. 01824_ K-01 Serf destroyed. 01839_ Slammed into W-25 Informer. 01863_ Slammed into S-10 Pest. 01863_ Destabilizing: Core damaged (-5). 01891_ Acquired Mni. Grenade Launcher. 01893_ Matter Filter disabled. 01893_ S-10 Pest destroyed. 01894_ Slug penetrates Matter Filter. 01895_ Arm. Huge Wheel destroyed. 01895_ G-47 Trooper destroyed. 01895_ H-55 Commando destroyed. Map ----- +----------------------------------------------------+ | ?????????#######+####### #?? | | ???????????????????????# #?? | | ???????????????????????# #?? | | ???????????????????????# #?? | | ???????????????????????# #?? | | ???????????????????????# +?? | | ???????????????????????# # ? | | ???????????????????????# ### ? | | ???????????????????????# #??? | | ???????????????????????# #??? | | ???????????????????????# #???? | | ???????????????????????# #???? | | ??????????????##+#?????# #???? | | ??????????????# #?????# #???? | | ??????????????# #?????# #???? | | ??????????????+ #?????# #???? | | ??????????????# #???### ##??? | | ??????????????# ##### ! #??" | | ????######??### # " | | ????# ?? ## + " | | ????#]s""""? ## ##### # | | ????# """"" ## #???###### | | ????#] """"" ## #?????????? ? | | ??### """"" + #?????????? | | ??# ## #??????????? | | ???# @ # #?????????#?? | | ???# l% # #??????? #?? | | ???# =%% # ##???? #?? | | ???# [ Y #?? ??? | | ???## ! # """ ??? | | ????# # + """ ??? | | ????#### ## [ # """ ??? | | ????# !! ## ##??""" ???? | | ????# =! ## #?????" ???? | | ????# ## #???????????? | | ????# ## #???????????? | | ????# + #???????????? | | ????# #####???????????? | | ????# #???????????????? | | ????# !#???????????????? | | ????# #???????????????? | | ????##########???????????????? | | ?????????????????????????????? | | | | | | | | | | | | | | | +----------------------------------------------------+ Best States ------------- Heat Dissipation 45 Energy Generation 15 Energy Capacity 265 Matter Stores 300 Matter Capacity 300 Sight Range 16 Terrain Scan Range 20 Terrain Scan Density 10 Armor Coverage 150 Evasion (%) 40 Melee Accuracy 5 Recoil Reduction 2 Item Schematics ----------------- None Robot Schematics ------------------ None Fabricated ------------ Nothing Alien Tech Used ----------------- None Achievements -------------- Short-term Sacrifices Challenges ------------ None Game ------ Seed CombatGaussWand Manual? 0 Play Time 00:26:58 Cumulative 29.9 hours Start 2020.09.11 @ 09:38:50 End 2020.09.11 @ 10:10:06 Sessions 1 Manual Loads 0 Difficulty Rogue Special Mode None Game No. 65 Rogue 65 Adventurer 0 Explorer 0 Win Type - Total 0 Types 0/0/0/0/0/0/0 Lore% 31 Gallery% 34 Achievement% 27 Wizard Run 0 Options --------- ASCII 0 Keyboard 1 Movement Vi Keybinds 0 Fullscreen 1 Font 18/SmallcapsGlow Map View 76x50 Tactical HUD 1 Map Filters NONE Filters NONE Steam 1 RUN: 7ef7cb81-09b4-48f7-9e4e-39b8fd435418